fUSD/lending_fUSD_20260506
["ID","MTS","AMOUNT","RATE_DAILY","PERIOD"]
[421689452,1778043058000,-300.5044107,0.00023929,2]
[421689427,1778043058000,-232.0,0.00022,2]
[421689408,1778043058000,-2000.0,0.00021998,2]
[421689439,1778043058000,-788.48,0.00022839,2]
[421689453,1778043058000,-591.0,0.00024,2]
[421689401,1778043058000,-2000.0,0.00021822,2]
[421689400,1778043058000,-2000.0,0.00021822,2]
[421689403,1778043058000,-1000.0,0.00021918,5]
[421689402,1778043058000,-5000.0,0.00021918,2]
[421689406,1778043058000,-2000.0,0.00021998,2]
[421689412,1778043058000,-2000.0,0.00021998,2]
[421689407,1778043058000,-2000.0,0.00021998,2]
[421689404,1778043058000,-1242.65,0.00021918,5]
[421689405,1778043058000,-2000.0,0.00021998,2]
[421689411,1778043058000,-2000.0,0.00021998,2]
[421689410,1778043058000,-2000.0,0.00021998,2]
[421689409,1778043058000,-2000.0,0.00021998,2]
[421689413,1778043058000,-2000.0,0.00021998,2]
[421689414,1778043058000,-2000.0,0.00021998,2]
[421689417,1778043058000,-2000.0,0.00021998,2]
[421689415,1778043058000,-2000.0,0.00021998,2]
[421689425,1778043058000,-591.0,0.00022,2]
[421689416,1778043058000,-2000.0,0.00021998,2]
[421689424,1778043058000,-2000.0,0.00021998,2]
[421689426,1778043058000,-295.0,0.00022,2]
[421689421,1778043058000,-2000.0,0.00021998,2]
[421689422,1778043058000,-2000.0,0.00021998,2]
[421689423,1778043058000,-2000.0,0.00021998,2]
[421689418,1778043058000,-2000.0,0.00021998,2]
[421689420,1778043058000,-2000.0,0.00021998,2]
[421689419,1778043058000,-2000.0,0.00021998,2]
[421689428,1778043058000,-296.0,0.00022,2]
[421689438,1778043058000,-788.48,0.00022565,2]
[421689436,1778043058000,-159.17631842,0.00022362,21]
[421689460,1778043058000,-2233.61,0.00024174,2]
[421689505,1778043058000,-3875.20424173,0.00025951,2]
[421689456,1778043058000,-296.0,0.00024,2]
[421689501,1778043058000,-285.6,0.00025786,2]
[421689527,1778043058000,-1115.49,0.00026886,2]
[421689495,1778043058000,-3875.20424173,0.00025623,2]
[421689499,1778043058000,-450.0,0.00025767,2]
[421689496,1778043058000,-150.0,0.00025753,2]
[421689504,1778043058000,-3875.20424173,0.00025871,2]
[421689497,1778043058000,-158.02,0.00025753,30]
[421689500,1778043058000,-241.12,0.00025786,2]
[421689498,1778043058000,-350.0,0.00025753,2]
[421689508,1778043058000,-1115.49,0.00026,2]
[421689518,1778043058000,-1115.49,0.0002638,2]
[421689517,1778043058000,-500.0,0.0002632,2]
[421689516,1778043058000,-500.0,0.0002632,2]
[421689509,1778043058000,-1000.0,0.00026027,35]
[421689507,1778043058000,-3875.20424173,0.0002596,2]
[421689512,1778043058000,-195.82,0.00026099,30]
[421689510,1778043058000,-171.3586498,0.00026054,2]
[421689511,1778043058000,-12875.5781254,0.00026054,2]
[421689514,1778043058000,-1115.49,0.00026253,2]
[421689513,1778043058000,-1115.49,0.00026127,2]
[421689515,1778043058000,-450.0,0.00026301,2]
[421689519,1778043058000,-195.82,0.00026388,2]
[421689522,1778043058000,-1115.49,0.00026633,2]
[421689521,1778043058000,-250.0,0.00026508,2]
[421689523,1778043058000,-195.82,0.00026676,7]
[421689524,1778043058000,-1115.49,0.00026759,2]
[421689525,1778043058000,-150.0,0.00026849,2]
[421689526,1778043058000,-550.0,0.00026849,2]
[421689461,1778043058000,-167.81107266,0.0002455,15]
[421689506,1778043058000,-150.0,0.0002596,2]
[421689503,1778043058000,-195.82,0.00025811,7]
[421689520,1778043058000,-1115.49,0.00026506,2]
[421689493,1778043058000,-435.16,0.00025523,2]
[421689502,1778043058000,-435.16,0.00025811,7]
[421689463,1778043058000,-500.0,0.00024657,2]
[421689459,1778043058000,-394.0,0.00024,2]
[421689467,1778043058000,-285.57,0.00024658,2]
[421689470,1778043058000,-435.16,0.00024658,2]
[421689473,1778043058000,-216.0,0.0002493,30]
[421689472,1778043058000,-5686.34352384,0.00024841,2]
[421689468,1778043058000,-150.0,0.00024658,2]
[421689471,1778043058000,-195.82,0.00024658,2]
[421689475,1778043058000,-195.82,0.00024946,7]
[421689474,1778043058000,-435.16,0.00024946,7]
[421689476,1778043058000,-2225.14502822,0.00025,2]
[421689477,1778043058000,-169.19823055,0.00025,2]
[421689479,1778043058000,-442.09,0.00025,2]
[421689469,1778043058000,-158.02,0.00024658,2]
[421689485,1778043058000,-401.88288883,0.00025,2]
[421689478,1778043058000,-597.40980863,0.00025,2]
[421689492,1778043058000,-7448.02400435,0.00025511,2]
[421689494,1778043058000,-195.82,0.00025523,2]
[421689483,1778043058000,-914.47438752,0.00025,2]
[421689481,1778043058000,-243.46179971,0.00025,2]
[421689488,1778043058000,-250.0,0.00025205,2]
[421689490,1778043058000,-195.82,0.00025234,30]
[421689482,1778043058000,-296.25442395,0.00025,2]
[421689484,1778043058000,-302.29326846,0.00025,2]
[421689491,1778043058000,-290.55978743,0.00025277,21]
[421689487,1778043058000,-158.02,0.00025205,7]
[421689480,1778043058000,-305.43715,0.00025,2]
[421689489,1778043058000,-435.16,0.00025234,30]
[421689486,1778043058000,-198.94167767,0.00025023,2]
[421689568,1778043059000,-508.6,0.00028,2]
[421689570,1778043059000,-508.6,0.00028,2]
[421689564,1778043059000,-162.55277151,0.00028,7]
[421689566,1778043059000,-508.6,0.00028,2]
[421689561,1778043059000,-500.0,0.00027923,15]
[421689560,1778043059000,-501.52296871,0.00027923,15]
[421689562,1778043059000,-160.38,0.00027945,2]
[421689559,1778043059000,-1000.0,0.00027921,5]
[421689565,1778043059000,-508.6,0.00028,2]
[421689558,1778043059000,-1115.49,0.00027898,2]
[421689563,1778043059000,-261.22043059,0.00027945,5]
[421689569,1778043059000,-508.6,0.00028,2]
[421689574,1778043059000,-192.64,0.00028118,2]
[421689571,1778043059000,-508.6,0.00028,2]
[421689579,1778043059000,-1115.49,0.00028404,2]
[421689572,1778043059000,-508.6,0.00028,2]
[421689576,1778043059000,-550.0,0.00028152,5]
[421689577,1778043059000,-1115.49,0.00028278,2]
[421689578,1778043059000,-198.94167767,0.00028372,2]
[421689575,1778043059000,-1115.49,0.00028151,2]
[421689580,1778043059000,-1500.0,0.00028468,5]
[421689581,1778043059000,-22411.78,0.000285,7]
[421689583,1778043059000,-165.54,0.0002863,2]
[421689556,1778043059000,-3772.22319857,0.00027814,2]
[421689584,1778043059000,-290.1,0.0002863,2]
[421689573,1778043059000,-1115.49,0.00028024,2]
[421689567,1778043059000,-508.6,0.00028,2]
[421689536,1778043059000,-1500.0,0.00027397,2]
[421689551,1778043059000,-168.11514353,0.00027534,2]
[421689582,1778043059000,-1115.49,0.00028531,2]
[421689531,1778043059000,-500.0,0.0002711,2]
[421689530,1778043059000,-500.0,0.0002711,2]
[421689529,1778043059000,-350.0,0.00027056,2]
[421689528,1778043059000,-1115.49,0.00027012,2]
[421689533,1778043059000,-1115.49,0.00027265,2]
[421689543,1778043059000,-1011.54,0.00027397,10]
[421689535,1778043059000,-1115.49,0.00027392,2]
[421689532,1778043059000,-1115.49,0.00027139,2]
[421689534,1778043059000,-500.0,0.00027373,2]
[421689541,1778043059000,-300.0,0.00027397,2]
[421689540,1778043059000,-1000.0,0.00027397,20]
[421689538,1778043059000,-650.0,0.00027397,5]
[421689539,1778043059000,-285.57,0.00027397,2]
[421689542,1778043059000,-1213.85,0.00027397,10]
[421689537,1778043059000,-160.0,0.00027397,10]
[421689544,1778043059000,-1000.0,0.00027397,45]
[421689553,1778043059000,-450.0,0.00027604,5]
[421689546,1778043059000,-500.0,0.000274,7]
[421689545,1778043059000,-275.91,0.000274,7]
[421689554,1778043059000,-1115.49,0.00027645,2]
[421689555,1778043059000,-1115.49,0.00027771,2]
[421689547,1778043059000,-22411.78,0.000274,7]
[421689549,1778043059000,-328.64576114,0.00027519,2]
[421689552,1778043059000,-192.64,0.00027541,7]
[421689548,1778043059000,-1115.49,0.00027518,2]
[421689550,1778043059000,-1399.15477727,0.00027525,2]
[421689557,1778043059000,-192.64,0.0002783,30]
[421689585,1778043059000,-153.58,0.0002863,2]
[421689589,1778043059000,-2000.0,0.00028661,7]
[421689587,1778043059000,-290.1,0.00028661,7]
[421689621,1778043059000,-290.1,0.00028947,7]
[421689620,1778043059000,-153.58,0.00028931,30]
[421689618,1778043059000,-290.1,0.00028915,2]
[421689619,1778043059000,-165.54,0.00028931,2]
[421689622,1778043059000,-153.58,0.00028969,2]
[421689617,1778043059000,-1115.49,0.0002891,2]
[421689627,1778043059000,-1238.73742285,0.00029016,5]
[421689625,1778043059000,-153.58,0.00029006,7]
[421689629,1778043059000,-1115.49,0.00029037,2]
[421689628,1778043059000,-165.54,0.00029031,7]
[421689632,1778043059000,-153.58,0.00029044,30]
[421689637,1778043059000,-165.54,0.00029132,30]
[421689624,1778043059000,-162.55277151,0.00029,7]
[421689634,1778043059000,-153.58,0.00029082,2]
[421689631,1778043059000,-290.1,0.00029042,7]
[421689626,1778043059000,-290.1,0.0002901,2]
[421689630,1778043059000,-160.38,0.00029041,2]
[421689633,1778043059000,-290.1,0.00029074,30]
[421689638,1778043059000,-290.1,0.00029137,7]
[421689639,1778043059000,-153.58,0.00029157,30]
[421689640,1778043059000,-1115.49,0.00029163,2]
[421689641,1778043059000,-290.1,0.00029169,30]
[421689642,1778043059000,-153.58,0.00029195,2]
[421689643,1778043059000,-290.1,0.00029201,2]
[421689644,1778043059000,-598.0,0.00029221,2]
[421689586,1778043059000,-1115.49,0.00028657,2]
[421689636,1778043059000,-153.58,0.00029119,7]
[421689614,1778043059000,-290.1,0.00028883,30]
[421689635,1778043059000,-290.1,0.00029105,2]
[421689623,1778043059000,-290.1,0.00028979,30]
[421689615,1778043059000,-153.58,0.00028893,7]
[421689591,1778043059000,-2000.0,0.00028661,7]
[421689592,1778043059000,-2000.0,0.00028661,7]
[421689597,1778043059000,-153.58,0.00028705,30]
[421689590,1778043059000,-2000.0,0.00028661,7]
[421689593,1778043059000,-2000.0,0.00028661,7]
[421689594,1778043059000,-153.58,0.00028667,7]
[421689599,1778043059000,-165.54,0.0002873,7]
[421689595,1778043059000,-290.1,0.00028693,30]
[421689598,1778043059000,-290.1,0.00028725,2]
[421689596,1778043059000,-401.94273924,0.000287,5]
[421689600,1778043059000,-153.58,0.00028743,2]
[421689601,1778043059000,-290.1,0.00028756,7]
[421689588,1778043059000,-2000.0,0.00028661,7]
[421689611,1778043059000,-165.54,0.0002883,30]
[421689602,1778043059000,-500.0,0.00028761,17]
[421689612,1778043059000,-290.1,0.00028852,7]
[421689613,1778043059000,-153.58,0.00028856,2]
[421689610,1778043059000,-290.1,0.0002882,2]
[421689609,1778043059000,-153.58,0.00028818,30]
[421689608,1778043059000,-162.55277151,0.000288,7]
[421689616,1778043059000,-2000.0,0.000289,10]
[421689607,1778043059000,-7448.02400435,0.00028789,2]
[421689603,1778043059000,-1000.0,0.00028767,55]
[421689604,1778043059000,-153.58,0.0002878,7]
[421689605,1778043059000,-1115.49,0.00028784,2]
[421689606,1778043059000,-290.1,0.00028788,30]
[421689696,1778043060000,-200.0,0.00030137,2]
[421689685,1778043060000,-310.69232647,0.0003,2]
[421689681,1778043060000,-152.0,0.00029896,3]
[421689684,1778043060000,-165.18283329,0.0003,2]
[421689679,1778043060000,-1115.49,0.00029796,2]
[421689678,1778043060000,-286.24644495,0.00029789,30]
[421689676,1778043060000,-2000.0,0.00029737,7]
[421689677,1778043060000,-172.82325687,0.00029755,2]
[421689675,1778043060000,-1115.49,0.00029669,2]
[421689697,1778043060000,-200.0,0.00030137,40]
[421689680,1778043060000,-2000.0,0.00029837,7]
[421689688,1778043060000,-200.0,0.0003,2]
[421689690,1778043060000,-2000.0,0.00030037,7]
[421689686,1778043060000,-600.0,0.0003,7]
[421689689,1778043060000,-10000.0,0.0003,30]
[421689695,1778043060000,-225.3,0.00030137,65]
[421689692,1778043060000,-22411.78,0.000301,7]
[421689691,1778043060000,-1115.49,0.00030049,30]
[421689694,1778043060000,-285.57,0.00030137,2]
[421689693,1778043060000,-204.43944946,0.0003013,2]
[421689699,1778043060000,-1664.97863847,0.00030137,30]
[421689701,1778043060000,-150.0,0.00030137,30]
[421689700,1778043060000,-211.03,0.00030137,120]
[421689702,1778043060000,-166.15,0.00030137,2]
[421689673,1778043060000,-275.91,0.000296,7]
[421689687,1778043060000,-200.0,0.0003,2]
[421689683,1778043060000,-2000.0,0.00029937,7]
[421689645,1778043060000,-539.0,0.00029221,2]
[421689648,1778043060000,-739.0,0.00029221,2]
[421689646,1778043060000,-3536.0,0.00029221,2]
[421689647,1778043060000,-1017.221,0.00029221,2]
[421689649,1778043060000,-150.0,0.00029221,2]
[421689659,1778043060000,-290.26,0.00029232,7]
[421689654,1778043060000,-173.908,0.00029221,2]
[421689651,1778043060000,-250.0,0.00029221,2]
[421689650,1778043060000,-150.0,0.00029221,2]
[421689658,1778043060000,-165.57,0.00029232,2]
[421689653,1778043060000,-417.0,0.00029221,2]
[421689652,1778043060000,-275.0,0.00029221,2]
[421689698,1778043060000,-271.06,0.00030137,2]
[421689655,1778043060000,-150.0,0.00029221,2]
[421689682,1778043060000,-1115.49,0.00029922,2]
[421689656,1778043060000,-241.487,0.00029221,2]
[421689662,1778043060000,-5686.34352384,0.00029247,2]
[421689663,1778043060000,-1115.49,0.0002929,2]
[421689661,1778043060000,-227.4824174,0.00029237,7]
[421689672,1778043060000,-1115.49,0.00029543,2]
[421689664,1778043060000,-22411.78,0.000293,7]
[421689665,1778043060000,-2000.0,0.00029337,7]
[421689667,1778043060000,-369.78662112,0.00029428,2]
[421689669,1778043060000,-1664.97863847,0.00029452,30]
[421689670,1778043060000,-150.0,0.00029534,2]
[421689666,1778043060000,-1115.49,0.00029416,2]
[421689668,1778043060000,-2000.0,0.00029437,7]
[421689671,1778043060000,-2000.0,0.00029537,7]
[421689657,1778043060000,-5287.0,0.00029221,2]
[421689703,1778043060000,-451.0,0.00030164,30]
[421689660,1778043060000,-153.69,0.00029232,7]
[421689706,1778043060000,-451.0,0.00030164,30]
[421689744,1778043060000,-453.0,0.00030192,30]
[421689741,1778043060000,-453.0,0.00030192,30]
[421689735,1778043060000,-453.0,0.00030192,30]
[421689740,1778043060000,-453.0,0.00030192,30]
[421689734,1778043060000,-453.0,0.00030192,30]
[421689743,1778043060000,-453.0,0.00030192,30]
[421689739,1778043060000,-453.0,0.00030192,30]
[421689742,1778043060000,-453.0,0.00030192,30]
[421689747,1778043060000,-453.0,0.00030192,30]
[421689746,1778043060000,-453.0,0.00030192,30]
[421689745,1778043060000,-453.0,0.00030192,30]
[421689748,1778043060000,-453.0,0.00030192,30]
[421689753,1778043060000,-453.0,0.00030192,30]
[421689749,1778043060000,-453.0,0.00030192,30]
[421689750,1778043060000,-453.0,0.00030192,30]
[421689751,1778043060000,-453.0,0.00030192,30]
[421689754,1778043060000,-453.0,0.00030192,30]
[421689752,1778043060000,-453.0,0.00030192,30]
[421689755,1778043060000,-453.0,0.00030192,30]
[421689757,1778043060000,-453.0,0.00030192,30]
[421689761,1778043060000,-453.0,0.00030192,30]
[421689756,1778043060000,-453.0,0.00030192,30]
[421689760,1778043060000,-453.0,0.00030192,30]
[421689762,1778043060000,-453.0,0.00030192,30]
[421689758,1778043060000,-453.0,0.00030192,30]
[421689759,1778043060000,-453.0,0.00030192,30]
[421689708,1778043060000,-451.0,0.00030164,30]
[421689736,1778043060000,-453.0,0.00030192,30]
[421689737,1778043060000,-453.0,0.00030192,30]
[421689674,1778043060000,-2000.0,0.00029637,7]
[421689733,1778043060000,-453.0,0.00030192,30]
[421689738,1778043060000,-453.0,0.00030192,30]
[421689704,1778043060000,-451.0,0.00030164,30]
[421689707,1778043060000,-451.0,0.00030164,30]
[421689705,1778043060000,-451.0,0.00030164,30]
[421689710,1778043060000,-451.0,0.00030164,30]
[421689720,1778043060000,-453.0,0.00030192,30]
[421689709,1778043060000,-451.0,0.00030164,30]
[421689712,1778043060000,-451.0,0.00030164,30]
[421689711,1778043060000,-451.0,0.00030164,30]
[421689714,1778043060000,-451.0,0.00030164,30]
[421689713,1778043060000,-451.0,0.00030164,30]
[421689715,1778043060000,-451.0,0.00030164,30]
[421689719,1778043060000,-453.0,0.00030192,30]
[421689716,1778043060000,-451.0,0.00030164,30]
[421689717,1778043060000,-451.0,0.00030164,30]
[421689718,1778043060000,-1115.49,0.00030176,30]
[421689729,1778043060000,-453.0,0.00030192,30]
[421689731,1778043060000,-453.0,0.00030192,30]
[421689730,1778043060000,-453.0,0.00030192,30]
[421689728,1778043060000,-453.0,0.00030192,30]
[421689726,1778043060000,-453.0,0.00030192,30]
[421689727,1778043060000,-453.0,0.00030192,30]
[421689725,1778043060000,-453.0,0.00030192,30]
[421689723,1778043060000,-453.0,0.00030192,30]
[421689732,1778043060000,-453.0,0.00030192,30]
[421689721,1778043060000,-453.0,0.00030192,30]
[421689722,1778043060000,-453.0,0.00030192,30]
[421689724,1778043060000,-453.0,0.00030192,30]
[421689782,1778043061000,-401.06,0.000302,2]
[421689785,1778043061000,-1115.49,0.00030429,30]
[421689774,1778043061000,-453.0,0.00030192,30]
[421689786,1778043061000,-200.0,0.00030437,2]
[421689794,1778043061000,-10015.53395039,0.00031,120]
[421689783,1778043061000,-1115.49,0.00030302,30]
[421689793,1778043061000,-4884.43800563,0.00031,30]
[421689787,1778043061000,-180.0,0.00030526,5]
[421689789,1778043061000,-1115.49,0.00030682,30]
[421689792,1778043061000,-1115.49,0.00030935,30]
[421689788,1778043061000,-1115.49,0.00030555,30]
[421689791,1778043061000,-1115.49,0.00030808,30]
[421689781,1778043061000,-1062.41412854,0.000302,2]
[421689784,1778043061000,-184.97,0.00030411,120]
[421689779,1778043061000,-453.0,0.00030192,30]
[421689768,1778043061000,-453.0,0.00030192,30]
[421689769,1778043061000,-453.0,0.00030192,30]
[421689776,1778043061000,-453.0,0.00030192,30]
[421689777,1778043061000,-453.0,0.00030192,30]
[421689772,1778043061000,-453.0,0.00030192,30]
[421689775,1778043061000,-453.0,0.00030192,30]
[421689780,1778043061000,-453.0,0.00030192,30]
[421689771,1778043061000,-453.0,0.00030192,30]
[421689773,1778043061000,-453.0,0.00030192,30]
[421689764,1778043061000,-453.0,0.00030192,30]
[421689765,1778043061000,-453.0,0.00030192,30]
[421689766,1778043061000,-453.0,0.00030192,30]
[421689763,1778043061000,-453.0,0.00030192,30]
[421689790,1778043061000,-200.0,0.00030737,2]
[421689767,1778043061000,-453.0,0.00030192,30]
[421689778,1778043061000,-453.0,0.00030192,30]
[421689795,1778043061000,-207.86895535,0.00031,120]
[421689770,1778043061000,-453.0,0.00030192,30]
[421689799,1778043061000,-150.0,0.00031011,2]
[421689814,1778043061000,-2000.0,0.00031353,2]
[421689807,1778043061000,-913.0,0.00031283,30]
[421689817,1778043061000,-2000.0,0.00031353,2]
[421689819,1778043061000,-2000.0,0.00031353,2]
[421689820,1778043061000,-2000.0,0.00031353,2]
[421689821,1778043061000,-2000.0,0.00031353,2]
[421689812,1778043061000,-591.0,0.00031323,30]
[421689823,1778043061000,-2000.0,0.00031353,2]
[421689822,1778043061000,-2000.0,0.00031353,2]
[421689826,1778043061000,-2000.0,0.00031507,30]
[421689825,1778043061000,-1115.49,0.00031441,30]
[421689824,1778043061000,-1000.0,0.000314,7]
[421689828,1778043061000,-184.0,0.00031559,10]
[421689796,1778043061000,-160.0,0.00031,120]
[421689818,1778043061000,-2000.0,0.00031353,2]
[421689808,1778043061000,-299.0,0.00031283,30]
[421689827,1778043061000,-2000.0,0.00031507,30]
[421689815,1778043061000,-2000.0,0.00031353,2]
[421689816,1778043061000,-2000.0,0.00031353,2]
[421689798,1778043061000,-22411.78,0.00031,7]
[421689805,1778043061000,-232.0,0.00031276,30]
[421689804,1778043061000,-159.0,0.00031272,30]
[421689800,1778043061000,-200.0,0.00031037,2]
[421689803,1778043061000,-295.0,0.00031272,30]
[421689801,1778043061000,-1115.49,0.00031061,30]
[421689806,1778043061000,-296.0,0.00031276,30]
[421689811,1778043061000,-1115.49,0.00031314,30]
[421689802,1778043061000,-1115.49,0.00031188,30]
[421689810,1778043061000,-152.0,0.00031314,4]
[421689797,1778043061000,-160.0,0.00031,30]
[421689813,1778043061000,-200.0,0.00031337,2]
[421689809,1778043061000,-394.0,0.00031283,30]
[421689926,1778043062000,-500.0,0.00034109,120]
[421689915,1778043062000,-5686.34352384,0.00033653,2]
[421689919,1778043062000,-1620.04732435,0.000339,120]
[421689917,1778043062000,-166.1,0.0003385,2]
[421689924,1778043062000,-543.0073538,0.00034049,60]
[421689925,1778043062000,-167.7129841,0.00034049,60]
[421689923,1778043062000,-189.1331068,0.00034049,60]
[421689934,1778043062000,-232.0,0.00034276,30]
[421689930,1778043062000,-150.0,0.0003419,2]
[421689931,1778043062000,-181.88970997,0.00034247,30]
[421689918,1778043062000,-619.92683849,0.000339,120]
[421689916,1778043062000,-500.0,0.00033698,120]
[421689938,1778043062000,-299.0,0.00034283,30]
[421689936,1778043062000,-296.0,0.00034276,30]
[421689929,1778043062000,-152.0,0.00034148,6]
[421689927,1778043062000,-250.0,0.00034117,7]
[421689932,1778043062000,-295.0,0.00034272,30]
[421689933,1778043062000,-159.0,0.00034272,30]
[421689939,1778043062000,-394.0,0.00034283,30]
[421689945,1778043062000,-800.0,0.00034428,2]
[421689941,1778043062000,-800.0,0.00034428,2]
[421689940,1778043062000,-591.0,0.00034323,30]
[421689944,1778043062000,-800.0,0.00034428,2]
[421689914,1778043062000,-742.2641055,0.00033447,120]
[421689943,1778043062000,-800.0,0.00034428,2]
[421689928,1778043062000,-250.0,0.00034117,7]
[421689920,1778043062000,-397.98147991,0.000339,120]
[421689896,1778043062000,-184.320957,0.00032929,10]
[421689909,1778043062000,-299.0,0.00033283,30]
[421689947,1778043062000,-800.0,0.00034428,2]
[421689895,1778043062000,-806.42,0.00032877,2]
[421689894,1778043062000,-229.76505251,0.00032877,2]
[421689889,1778043062000,-500.0,0.00032877,2]
[421689893,1778043062000,-500.0,0.00032877,2]
[421689890,1778043062000,-500.0,0.00032877,2]
[421689892,1778043062000,-500.0,0.00032877,2]
[421689891,1778043062000,-500.0,0.00032877,2]
[421689888,1778043062000,-285.57,0.00032877,2]
[421689898,1778043062000,-619.92683849,0.00033,120]
[421689908,1778043062000,-913.0,0.00033283,30]
[421689899,1778043062000,-1620.04732435,0.00033,120]
[421689911,1778043062000,-500.0,0.00033287,120]
[421689897,1778043062000,-8693.0,0.00033,2]
[421689902,1778043062000,-162.55277151,0.00033,3]
[421689905,1778043062000,-159.0,0.00033272,30]
[421689906,1778043062000,-232.0,0.00033276,30]
[421689900,1778043062000,-397.98147991,0.00033,120]
[421689904,1778043062000,-295.0,0.00033272,30]
[421689903,1778043062000,-5529.0,0.000331,5]
[421689901,1778043062000,-212.15154379,0.00033,120]
[421689910,1778043062000,-394.0,0.00033283,30]
[421689912,1778043062000,-591.0,0.00033323,30]
[421689921,1778043062000,-212.15154379,0.000339,120]
[421689922,1778043062000,-801.0937156,0.00034049,60]
[421689913,1778043062000,-4000.0,0.0003337,60]
[421689907,1778043062000,-296.0,0.00033276,30]
[421689937,1778043062000,-913.0,0.00034283,30]
[421689967,1778043062000,-212.15154379,0.00035,120]
[421689942,1778043062000,-800.0,0.00034428,2]
[421689980,1778043062000,-4000.0,0.00035233,60]
[421689978,1778043062000,-5287.0,0.00035221,2]
[421689979,1778043062000,-4000.0,0.00035233,60]
[421689981,1778043062000,-295.0,0.00035272,30]
[421689983,1778043062000,-232.0,0.00035276,30]
[421689982,1778043062000,-159.0,0.00035272,30]
[421689986,1778043062000,-299.0,0.00035283,30]
[421689985,1778043062000,-913.0,0.00035283,30]
[421689987,1778043062000,-394.0,0.00035283,30]
[421689984,1778043062000,-296.0,0.00035276,30]
[421689988,1778043062000,-275.91,0.000353,30]
[421689990,1778043062000,-591.0,0.00035323,30]
[421689977,1778043062000,-150.0,0.00035221,2]
[421689999,1778043062000,-619.92683849,0.00036,120]
[421689991,1778043062000,-7448.02400435,0.00035344,2]
[421689992,1778043062000,-152.0,0.00035397,7]
[421689989,1778043062000,-1500.0,0.000353,7]
[421689997,1778043062000,-150.0,0.00035899,2]
[421689996,1778043062000,-285.57,0.00035616,2]
[421689994,1778043062000,-324.37751906,0.00035546,7]
[421689995,1778043062000,-152.0,0.00035566,7]
[421689993,1778043062000,-152.0,0.00035408,7]
[421690000,1778043062000,-1620.04732435,0.00036,120]
[421689946,1778043062000,-800.0,0.00034428,2]
[421690003,1778043062000,-500.0,0.00036162,3]
[421690001,1778043062000,-397.98147991,0.00036,120]
[421689998,1778043062000,-274.95850481,0.00036,120]
[421689975,1778043062000,-150.0,0.00035221,2]
[421690002,1778043062000,-212.15154379,0.00036,120]
[421689971,1778043062000,-1014.0,0.00035221,2]
[421689969,1778043062000,-539.0,0.00035221,2]
[421689949,1778043062000,-800.0,0.00034428,2]
[421689948,1778043062000,-800.0,0.00034428,2]
[421689959,1778043062000,-2646.65350668,0.00035,14]
[421689961,1778043062000,-19502.82352349,0.00035,120]
[421689950,1778043062000,-363.0,0.00034428,2]
[421689953,1778043062000,-1500.0,0.00034795,2]
[421689960,1778043062000,-176756.29886975,0.00035,30]
[421689952,1778043062000,-500.0,0.00034709,120]
[421689957,1778043062000,-178.12389953,0.000349,2]